[Event "Titled Tuesday Blitz February 28 Early 2023"]
[White "Lauridsen, Jesper Morch"]
[Black "Rottenwohrer Suarez, Juan"]
[WhiteFideId "1401890"]
[BlackFideId "32068182"]
[WhiteElo "2280"]
[BlackElo "2174"]
[Result "1-0"]
[Round "11"]
[TimeControl "180+2"]
[Date "2023.02.28"]
[WhiteClock "0:00:10"]
[BlackClock "0:00:02"]

1. e4 {[%clk 0:03:00]}  c5 {[%clk 0:02:59]} 2. Nf3 {[%clk 0:03:00]}  g6 {[%clk 0:02:59]} 3. d4 {[%clk 0:02:59]}  cxd4 {[%clk 0:03:00]} 4. Qxd4 {[%clk 0:02:57]}  Nf6 {[%clk 0:03:00]} 5. Nc3 {[%clk 0:02:57]}  Nc6 {[%clk 0:03:01]} 6. Qa4 {[%clk 0:02:56]}  d6 {[%clk 0:03:01]} 7. e5 {[%clk 0:02:56]}  dxe5 {[%clk 0:03:02]} 8. Nxe5 {[%clk 0:02:55]}  Bd7 {[%clk 0:03:03]} 9. Nxc6 {[%clk 0:02:54]}  Bxc6 {[%clk 0:03:01]} 10. Bb5 {[%clk 0:02:54]}  Rc8 {[%clk 0:02:58]} 11. Qxa7 {[%clk 0:02:43]}  Qc7 {[%clk 0:02:08]} 12. O-O {[%clk 0:02:31]}  Bg7 {[%clk 0:02:08]} 13. Bxc6+ {[%clk 0:02:17]}  Qxc6 {[%clk 0:02:06]} 14. Be3 {[%clk 0:02:07]}  O-O {[%clk 0:02:03]} 15. Qb6 {[%clk 0:02:07]}  Ng4 {[%clk 0:01:54]} 16. Qxc6 {[%clk 0:02:01]}  Rxc6 {[%clk 0:01:54]} 17. Rad1 {[%clk 0:01:51]}  Nxe3 {[%clk 0:01:49]} 18. fxe3 {[%clk 0:01:51]}  Bxc3 {[%clk 0:01:49]} 19. bxc3 {[%clk 0:01:51]}  Rxc3 {[%clk 0:01:50]} 20. Rd7 {[%clk 0:01:51]}  Rxe3 {[%clk 0:01:38]} 21. Rxb7 {[%clk 0:01:50]}  Rc8 {[%clk 0:01:37]} 22. Rc1 {[%clk 0:01:32]}  Re2 {[%clk 0:01:25]} 23. Kf1 {[%clk 0:01:31]}  Rexc2 {[%clk 0:01:23]} 24. Rxc2 {[%clk 0:01:28]}  Rxc2 {[%clk 0:01:24]} 25. Rxe7 {[%clk 0:01:28]}  Rxa2 {[%clk 0:01:24]} 26. h4 {[%clk 0:01:20]}  h5 {[%clk 0:01:21]} 27. Rb7 {[%clk 0:01:16]}  Kg7 {[%clk 0:01:16]} 28. Rb6 {[%clk 0:01:12]}  Rd2 {[%clk 0:01:10]} 29. Ra6 {[%clk 0:01:08]}  Rd5 {[%clk 0:01:08]} 30. Rb6 {[%clk 0:01:07]}  Rf5+ {[%clk 0:01:08]} 31. Ke2 {[%clk 0:01:04]}  Rf6 {[%clk 0:01:08]} 32. Rb5 {[%clk 0:01:00]}  Re6+ {[%clk 0:01:09]} 33. Kf3 {[%clk 0:00:58]}  Kf6 {[%clk 0:01:09]} 34. g3 {[%clk 0:00:51]}  Ra6 {[%clk 0:01:08]} 35. Rc5 {[%clk 0:00:50]}  Re6 {[%clk 0:01:08]} 36. Rb5 {[%clk 0:00:50]}  Re5 {[%clk 0:01:08]} 37. Rb7 {[%clk 0:00:46]}  Ra5 {[%clk 0:01:05]} 38. Rc7 {[%clk 0:00:43]}  Ke6 {[%clk 0:00:55]} 39. Rb7 {[%clk 0:00:39]}  Rf5+ {[%clk 0:00:55]} 40. Ke3 {[%clk 0:00:38]}  Kd5 {[%clk 0:00:41]} 41. Rb5+ {[%clk 0:00:33]}  Ke6 {[%clk 0:00:41]} 42. Rb6+ {[%clk 0:00:33]}  Ke5 {[%clk 0:00:40]} 43. Rb5+ {[%clk 0:00:32]}  Kf6 {[%clk 0:00:41]} 44. Rb6+ {[%clk 0:00:32]}  Ke7 {[%clk 0:00:39]} 45. Ra6 {[%clk 0:00:28]}  Rf6 {[%clk 0:00:36]} 46. Ra7+ {[%clk 0:00:27]}  Ke6 {[%clk 0:00:36]} 47. Ra5 {[%clk 0:00:26]}  Rf1 {[%clk 0:00:33]} 48. Ra6+ {[%clk 0:00:25]}  Kf5 {[%clk 0:00:31]} 49. Ra4 {[%clk 0:00:21]}  Rb1 {[%clk 0:00:18]} 50. Kf2 {[%clk 0:00:17]}  Rb2+ {[%clk 0:00:17]} 51. Kf3 {[%clk 0:00:17]}  Rb3+ {[%clk 0:00:17]} 52. Kf2 {[%clk 0:00:18]}  Rd3 {[%clk 0:00:15]} 53. Rf4+ {[%clk 0:00:17]}  Ke6 {[%clk 0:00:15]} 54. Ra4 {[%clk 0:00:16]}  f6 {[%clk 0:00:11]} 55. Ra5 {[%clk 0:00:16]}  Rd5 {[%clk 0:00:09]} 56. Ra6+ {[%clk 0:00:16]}  Kf5 {[%clk 0:00:10]} 57. Rb6 {[%clk 0:00:16]}  Rd4 {[%clk 0:00:07]} 58. Rc6 {[%clk 0:00:16]}  Kg4 {[%clk 0:00:07]} 59. Rxf6 {[%clk 0:00:15]}  Rd2+ {[%clk 0:00:07]} 60. Ke3 {[%clk 0:00:13]}  Rg2 {[%clk 0:00:01]} 61. Rxg6+ {[%clk 0:00:13]}  Kh3 {[%clk 0:00:02]} 62. Kf4 {[%clk 0:00:12]}  Rf2+ {[%clk 0:00:01]} 63. Kg5 {[%clk 0:00:11]}  Kxg3 {[%clk 0:00:02]} 64. Kxh5+ {[%clk 0:00:12]}  Kh3 {[%clk 0:00:03]} 65. Rg5 {[%clk 0:00:11]}  Rf6 {[%clk 0:00:02]} 66. Re5 {[%clk 0:00:10]}  Kg3 {[%clk 0:00:02]} 67. Re3+ {[%clk 0:00:09]}  Kf4 {[%clk 0:00:02]} 68. Re1 {[%clk 0:00:09]}  Ra6 {[%clk 0:00:02]} 69. Rf1+ {[%clk 0:00:08]}  Ke5 {[%clk 0:00:02]} 70. Kg5 {[%clk 0:00:09]}  Ra2 {[%clk 0:00:02]} 71. Re1+ {[%clk 0:00:09]}  Kd6 {[%clk 0:00:03]} 72. h5 {[%clk 0:00:09]}  Rg2+ {[%clk 0:00:03]} 73. Kf6 {[%clk 0:00:09]}  Rh2 {[%clk 0:00:03]} 74. Kg6 {[%clk 0:00:09]}  Rg2+ {[%clk 0:00:04]} 75. Kh7 {[%clk 0:00:09]}  Rh2 {[%clk 0:00:01]} 76. h6 {[%clk 0:00:10]}  Rg2 {[%clk 0:00:01]} 77. Kh8 {[%clk 0:00:10]}  Rh2 {[%clk 0:00:01]} 78. h7 {[%clk 0:00:10]}  Rg2 {[%clk 0:00:02]} 79. Re8 {[%clk 0:00:10]}  Kd7 {[%clk 0:00:02]} 80. Rg8 {[%clk 0:00:10]}  Rh2 {[%clk 0:00:03]} 81. Kg7 {[%clk 0:00:10]}  Rg2+ {[%clk 0:00:03]} 82. Kf6 {[%clk 0:00:10]}  Rf2+ {[%clk 0:00:02]} 83. Ke5 {[%clk 0:00:10]}  Re2+ {[%clk 0:00:02]} 84. Kd4 {[%clk 0:00:10]}  Rd2+ {[%clk 0:00:02]} 85. Kc3 {[%clk 0:00:10]} 1-0


[Site "https://www.chess.com"]

[Event "Titled Tuesday Blitz February 28 Early 2023"]
[White "Filgueira, Hernan"]
[Black "Burke, John F"]
[WhiteFideId "101770"]
[BlackFideId "2052970"]
[WhiteElo "2363"]
[BlackElo "2248"]
[Result "1-0"]
[Round "11"]
[TimeControl "180+2"]
[Date "2023.02.28"]
[WhiteClock "0:00:13"]
[BlackClock "0:00:06"]

1. c4 {[%clk 0:02:59]}  e5 {[%clk 0:02:54]} 2. Nc3 {[%clk 0:02:58]}  d6 {[%clk 0:02:54]} 3. Nf3 {[%clk 0:02:57]}  g6 {[%clk 0:02:54]} 4. d4 {[%clk 0:02:56]}  exd4 {[%clk 0:02:49]} 5. Nxd4 {[%clk 0:02:56]}  Bg7 {[%clk 0:02:49]} 6. g3 {[%clk 0:02:54]}  Ne7 {[%clk 0:02:49]} 7. Bg2 {[%clk 0:02:53]}  O-O {[%clk 0:02:49]} 8. O-O {[%clk 0:02:53]}  Nd7 {[%clk 0:02:44]} 9. e3 {[%clk 0:02:37]}  Ne5 {[%clk 0:02:43]} 10. b3 {[%clk 0:02:36]}  c6 {[%clk 0:02:43]} 11. Bb2 {[%clk 0:02:35]}  Qc7 {[%clk 0:02:33]} 12. Qc2 {[%clk 0:02:33]}  Nf5 {[%clk 0:02:30]} 13. Nde2 {[%clk 0:02:31]}  Re8 {[%clk 0:02:22]} 14. Rad1 {[%clk 0:02:28]}  Be6 {[%clk 0:02:16]} 15. Nf4 {[%clk 0:02:27]}  Bd7 {[%clk 0:02:06]} 16. h3 {[%clk 0:02:23]}  h5 {[%clk 0:02:03]} 17. e4 {[%clk 0:02:15]}  Nh6 {[%clk 0:01:48]} 18. Nfd5 {[%clk 0:02:11]}  cxd5 {[%clk 0:01:42]} 19. Nxd5 {[%clk 0:02:11]}  Qd8 {[%clk 0:01:41]} 20. f4 {[%clk 0:02:10]}  Nc6 {[%clk 0:01:41]} 21. Bxg7 {[%clk 0:02:09]}  Kxg7 {[%clk 0:01:41]} 22. Qc3+ {[%clk 0:02:08]}  Kf8 {[%clk 0:01:30]} 23. Qh8+ {[%clk 0:01:57]}  Ng8 {[%clk 0:01:28]} 24. e5 {[%clk 0:01:57]}  Re6 {[%clk 0:01:10]} 25. f5 {[%clk 0:01:30]}  gxf5 {[%clk 0:01:02]} 26. Rxf5 {[%clk 0:01:29]}  Nxe5 {[%clk 0:00:57]} 27. Rxh5 {[%clk 0:00:48]}  Ng6 {[%clk 0:00:35]} 28. Qd4 {[%clk 0:00:43]}  Bc6 {[%clk 0:00:33]} 29. Rf1 {[%clk 0:00:40]}  Bxd5 {[%clk 0:00:31]} 30. Bxd5 {[%clk 0:00:39]}  Rf6 {[%clk 0:00:31]} 31. Rhf5 {[%clk 0:00:34]}  Ne5 {[%clk 0:00:26]} 32. c5 {[%clk 0:00:25]}  Rxf5 {[%clk 0:00:19]} 33. Rxf5 {[%clk 0:00:24]}  Nh6 {[%clk 0:00:17]} 34. Rh5 {[%clk 0:00:19]}  Qf6 {[%clk 0:00:17]} 35. Qe3 {[%clk 0:00:16]}  Nf5 {[%clk 0:00:13]} 36. Qf4 {[%clk 0:00:16]}  Ng6 {[%clk 0:00:09]} 37. Qxf5 {[%clk 0:00:15]}  Qd4+ {[%clk 0:00:08]} 38. Kh2 {[%clk 0:00:14]}  Ne5 {[%clk 0:00:08]} 39. Bg2 {[%clk 0:00:14]}  d5 {[%clk 0:00:06]} 40. Rh8+ {[%clk 0:00:14]}  Ke7 {[%clk 0:00:05]} 41. Rxa8 {[%clk 0:00:14]}  Qxc5 {[%clk 0:00:06]} 42. Qxe5+ {[%clk 0:00:13]} 1-0


[Site "https://www.chess.com"]

[Event "Titled Tuesday Blitz February 28 Early 2023"]
[White "Khamdamova, Afruza"]
[Black "Fan_Of_Chucky"]
[WhiteFideId "14210444"]
[WhiteElo "2210"]
[BlackElo "2399"]
[Result "0-1"]
[Round "11"]
[TimeControl "180+2"]
[Date "2023.02.28"]
[WhiteClock "0:01:46"]
[BlackClock "0:02:09"]

1. e4 {[%clk 0:03:00]}  c5 {[%clk 0:02:52]} 2. Nf3 {[%clk 0:02:57]}  a6 {[%clk 0:02:52]} 3. c4 {[%clk 0:02:57]}  Nc6 {[%clk 0:02:50]} 4. d4 {[%clk 0:02:57]}  cxd4 {[%clk 0:02:51]} 5. Nxd4 {[%clk 0:02:56]}  e5 {[%clk 0:02:49]} 6. Nf5 {[%clk 0:02:42]}  d5 {[%clk 0:02:45]} 7. cxd5 {[%clk 0:02:41]}  Bxf5 {[%clk 0:02:41]} 8. exf5 {[%clk 0:02:41]}  Nd4 {[%clk 0:02:33]} 9. Nc3 {[%clk 0:02:40]}  Nf6 {[%clk 0:02:30]} 10. Bd3 {[%clk 0:02:10]}  Be7 {[%clk 0:02:27]} 11. O-O {[%clk 0:02:09]}  Nxd5 {[%clk 0:02:24]} 12. Be4 {[%clk 0:02:08]}  Nf6 {[%clk 0:02:21]} 13. Bxb7 {[%clk 0:02:05]}  Ra7 {[%clk 0:02:19]} 14. Qa4+ {[%clk 0:02:00]}  Nd7 {[%clk 0:02:16]} 15. Be4 {[%clk 0:01:48]}  O-O {[%clk 0:02:14]} 16. Be3 {[%clk 0:01:46]}  Nc5 {[%clk 0:02:10]} 17. Qc2 {[%clk 0:01:46]}  Nxc2 {[%clk 0:02:09]} 0-1


[Site "https://www.chess.com"]

[Event "Titled Tuesday Blitz February 28 Early 2023"]
[White "Petrova, Irina"]
[Black "Toncheva, Nadya"]
[WhiteFideId "14124122"]
[BlackFideId "2924056"]
[WhiteElo "2084"]
[BlackElo "2101"]
[Result "1-0"]
[Round "11"]
[TimeControl "180+2"]
[Date "2023.02.28"]
[WhiteClock "0:00:51"]
[BlackClock "0:00:07"]

1. e4 {[%clk 0:02:54]}  c5 {[%clk 0:03:00]} 2. Nf3 {[%clk 0:02:53]}  Nc6 {[%clk 0:03:00]} 3. Bb5 {[%clk 0:02:53]}  e6 {[%clk 0:02:57]} 4. Bxc6 {[%clk 0:02:53]}  bxc6 {[%clk 0:02:56]} 5. O-O {[%clk 0:02:53]}  d6 {[%clk 0:02:56]} 6. b3 {[%clk 0:02:51]}  e5 {[%clk 0:02:56]} 7. Bb2 {[%clk 0:02:50]}  g6 {[%clk 0:02:56]} 8. d3 {[%clk 0:02:32]}  Bg7 {[%clk 0:02:56]} 9. Nbd2 {[%clk 0:02:32]}  Ne7 {[%clk 0:02:56]} 10. Nc4 {[%clk 0:02:32]}  O-O {[%clk 0:02:56]} 11. c3 {[%clk 0:02:31]}  Bg4 {[%clk 0:02:47]} 12. h3 {[%clk 0:02:31]}  Be6 {[%clk 0:02:42]} 13. Qe2 {[%clk 0:02:20]}  Rb8 {[%clk 0:02:36]} 14. Rad1 {[%clk 0:02:14]}  h6 {[%clk 0:02:13]} 15. d4 {[%clk 0:02:13]}  exd4 {[%clk 0:02:03]} 16. cxd4 {[%clk 0:02:14]}  Nc8 {[%clk 0:01:28]} 17. d5 {[%clk 0:01:52]}  cxd5 {[%clk 0:01:25]} 18. exd5 {[%clk 0:01:52]}  Bf5 {[%clk 0:01:19]} 19. Bxg7 {[%clk 0:01:51]}  Kxg7 {[%clk 0:01:20]} 20. Rfe1 {[%clk 0:01:47]}  Nb6 {[%clk 0:01:14]} 21. Nxb6 {[%clk 0:01:42]}  axb6 {[%clk 0:01:15]} 22. a4 {[%clk 0:01:40]}  b5 {[%clk 0:01:12]} 23. axb5 {[%clk 0:01:37]}  Qa5 {[%clk 0:01:13]} 24. Nd2 {[%clk 0:01:33]}  Rfe8 {[%clk 0:00:58]} 25. Qf1 {[%clk 0:01:30]}  Rxe1 {[%clk 0:00:49]} 26. Qxe1 {[%clk 0:01:31]}  Qxb5 {[%clk 0:00:44]} 27. Nc4 {[%clk 0:01:29]}  Qxb3 {[%clk 0:00:41]} 28. Nxd6 {[%clk 0:01:28]}  Qxd1 {[%clk 0:00:38]} 29. Nxf5+ {[%clk 0:01:25]}  gxf5 {[%clk 0:00:33]} 30. Qxd1 {[%clk 0:01:26]}  Rd8 {[%clk 0:00:30]} 31. d6 {[%clk 0:01:25]}  Kf6 {[%clk 0:00:29]} 32. Qd5 {[%clk 0:01:26]}  c4 {[%clk 0:00:27]} 33. Qc6 {[%clk 0:01:16]}  Ke6 {[%clk 0:00:25]} 34. Qxc4+ {[%clk 0:01:10]}  Kxd6 {[%clk 0:00:25]} 35. Qd3+ {[%clk 0:01:10]}  Ke7 {[%clk 0:00:25]} 36. Qxf5 {[%clk 0:01:10]}  Rd6 {[%clk 0:00:25]} 37. Kh2 {[%clk 0:01:08]}  Kf8 {[%clk 0:00:24]} 38. Qc5 {[%clk 0:01:07]}  Ke7 {[%clk 0:00:24]} 39. f4 {[%clk 0:01:07]}  Ke6 {[%clk 0:00:23]} 40. f5+ {[%clk 0:01:05]}  Kd7 {[%clk 0:00:23]} 41. Kg3 {[%clk 0:01:03]}  Rf6 {[%clk 0:00:20]} 42. Kg4 {[%clk 0:01:02]}  Ke8 {[%clk 0:00:20]} 43. Qc8+ {[%clk 0:01:00]}  Ke7 {[%clk 0:00:19]} 44. Qc7+ {[%clk 0:01:00]}  Kf8 {[%clk 0:00:19]} 45. Qd8+ {[%clk 0:00:59]}  Kg7 {[%clk 0:00:20]} 46. Qd4 {[%clk 0:00:59]}  h5+ {[%clk 0:00:11]} 47. Kxh5 {[%clk 0:00:58]}  Kg8 {[%clk 0:00:08]} 48. Qxf6 {[%clk 0:00:57]}  Kf8 {[%clk 0:00:08]} 49. Kh6 {[%clk 0:00:51]}  Ke8 {[%clk 0:00:07]} 50. Kg7 {[%clk 0:00:50]}  Kd7 {[%clk 0:00:07]} 51. Qxf7+ {[%clk 0:00:51]} 1-0


[Site "https://www.chess.com"]

[Event "Titled Tuesday Blitz February 28 Early 2023"]
[White "Fernandez Garcia, Gumersindo"]
[Black "Kalajzic, Ivan"]
[WhiteFideId "24516740"]
[BlackFideId "14506378"]
[WhiteElo "2093"]
[BlackElo "2203"]
[Result "0-1"]
[Round "11"]
[TimeControl "180+2"]
[Date "2023.02.28"]
[WhiteClock "0:00:12"]
[BlackClock "0:00:12"]

1. e4 {[%clk 0:02:57]}  Nc6 {[%clk 0:02:59]} 2. d4 {[%clk 0:02:56]}  e5 {[%clk 0:02:59]} 3. c3 {[%clk 0:02:54]}  Nf6 {[%clk 0:02:59]} 4. f3 {[%clk 0:02:42]}  d5 {[%clk 0:02:58]} 5. dxe5 {[%clk 0:02:42]}  Nxe5 {[%clk 0:02:54]} 6. exd5 {[%clk 0:02:41]}  Qxd5 {[%clk 0:02:52]} 7. Qxd5 {[%clk 0:02:41]}  Nxd5 {[%clk 0:02:52]} 8. Ne2 {[%clk 0:02:40]}  Nd3+ {[%clk 0:02:32]} 9. Kd2 {[%clk 0:02:38]}  Nxc1 {[%clk 0:01:55]} 10. Nxc1 {[%clk 0:02:34]}  Bf5 {[%clk 0:01:53]} 11. Bd3 {[%clk 0:02:33]}  Bxd3 {[%clk 0:01:45]} 12. Nxd3 {[%clk 0:02:34]}  O-O-O {[%clk 0:01:45]} 13. Kc2 {[%clk 0:02:32]}  Ne3+ {[%clk 0:01:44]} 14. Kd2 {[%clk 0:02:24]}  Nxg2 {[%clk 0:01:40]} 15. Rd1 {[%clk 0:02:16]}  Nf4 {[%clk 0:01:29]} 16. Kc2 {[%clk 0:02:12]}  Nxd3 {[%clk 0:01:28]} 17. Rxd3 {[%clk 0:02:11]}  Rxd3 {[%clk 0:01:29]} 18. Kxd3 {[%clk 0:02:12]}  Bd6 {[%clk 0:01:29]} 19. h3 {[%clk 0:02:11]}  Rd8 {[%clk 0:01:28]} 20. Ke2 {[%clk 0:02:07]}  Bf4 {[%clk 0:01:27]} 21. a4 {[%clk 0:02:00]}  a5 {[%clk 0:01:22]} 22. b4 {[%clk 0:01:55]}  axb4 {[%clk 0:01:17]} 23. cxb4 {[%clk 0:01:52]}  Rd4 {[%clk 0:01:17]} 24. b5 {[%clk 0:01:46]}  Kd7 {[%clk 0:01:09]} 25. Ra2 {[%clk 0:01:44]}  Kd6 {[%clk 0:01:01]} 26. Nc3 {[%clk 0:01:43]}  f5 {[%clk 0:00:57]} 27. a5 {[%clk 0:01:39]}  Kc5 {[%clk 0:00:52]} 28. a6 {[%clk 0:01:34]}  bxa6 {[%clk 0:00:52]} 29. bxa6 {[%clk 0:01:34]}  Rd8 {[%clk 0:00:49]} 30. a7 {[%clk 0:01:29]}  Ra8 {[%clk 0:00:49]} 31. Kd3 {[%clk 0:01:02]}  c6 {[%clk 0:00:47]} 32. Ra6 {[%clk 0:01:00]}  Bc7 {[%clk 0:00:42]} 33. Kc2 {[%clk 0:00:55]}  g5 {[%clk 0:00:39]} 34. Kd3 {[%clk 0:00:47]}  h5 {[%clk 0:00:39]} 35. Kc2 {[%clk 0:00:47]}  g4 {[%clk 0:00:39]} 36. hxg4 {[%clk 0:00:48]}  fxg4 {[%clk 0:00:40]} 37. fxg4 {[%clk 0:00:48]}  hxg4 {[%clk 0:00:41]} 38. Ra4 {[%clk 0:00:48]}  g3 {[%clk 0:00:38]} 39. Ne4+ {[%clk 0:00:42]}  Kb5 {[%clk 0:00:37]} 40. Nc3+ {[%clk 0:00:42]}  Kb6 {[%clk 0:00:34]} 41. Rg4 {[%clk 0:00:29]}  Rxa7 {[%clk 0:00:33]} 42. Kb3 {[%clk 0:00:28]}  Ra1 {[%clk 0:00:30]} 43. Ne4 {[%clk 0:00:27]}  Re1 {[%clk 0:00:26]} 44. Kc4 {[%clk 0:00:22]}  g2 {[%clk 0:00:22]} 45. Rxg2 {[%clk 0:00:21]}  Rxe4+ {[%clk 0:00:22]} 46. Kd3 {[%clk 0:00:22]}  Rh4 {[%clk 0:00:22]} 47. Rb2+ {[%clk 0:00:22]}  Kc5 {[%clk 0:00:20]} 48. Rc2+ {[%clk 0:00:22]}  Kd5 {[%clk 0:00:20]} 49. Rg2 {[%clk 0:00:22]}  Rh3+ {[%clk 0:00:20]} 50. Kc2 {[%clk 0:00:22]}  Be5 {[%clk 0:00:21]} 51. Rg8 {[%clk 0:00:21]}  Kc4 {[%clk 0:00:20]} 52. Re8 {[%clk 0:00:20]}  Bd4 {[%clk 0:00:19]} 53. Re2 {[%clk 0:00:19]}  Rf3 {[%clk 0:00:19]} 54. Re4 {[%clk 0:00:19]}  Rf2+ {[%clk 0:00:18]} 55. Kd1 {[%clk 0:00:19]}  c5 {[%clk 0:00:18]} 56. Rg4 {[%clk 0:00:19]}  Ra2 {[%clk 0:00:18]} 57. Rg3 {[%clk 0:00:19]}  Kd5 {[%clk 0:00:15]} 58. Rh3 {[%clk 0:00:19]}  Ke4 {[%clk 0:00:15]} 59. Rg3 {[%clk 0:00:19]}  Be3 {[%clk 0:00:15]} 60. Rg8 {[%clk 0:00:13]}  Kd3 {[%clk 0:00:14]} 61. Rd8+ {[%clk 0:00:13]}  Bd4 {[%clk 0:00:14]} 62. Kc1 {[%clk 0:00:13]}  c4 {[%clk 0:00:14]} 63. Rb8 {[%clk 0:00:10]}  Ra1+ {[%clk 0:00:13]} 64. Rb1 {[%clk 0:00:10]}  Rxb1+ {[%clk 0:00:13]} 65. Kxb1 {[%clk 0:00:11]}  Kd2 {[%clk 0:00:13]} 66. Ka2 {[%clk 0:00:10]}  c3 {[%clk 0:00:13]} 67. Kb1 {[%clk 0:00:11]}  c2+ {[%clk 0:00:13]} 68. Ka2 {[%clk 0:00:12]}  c1=Q {[%clk 0:00:12]} 0-1


[Site "https://www.chess.com"]

[Event "Titled Tuesday Blitz February 28 Early 2023"]
[White "Matveeva, Olga"]
[Black "Novikov, Evgenij"]
[WhiteFideId "24107018"]
[BlackFideId "4125380"]
[WhiteElo "2056"]
[BlackElo "2242"]
[Result "0-1"]
[Round "11"]
[TimeControl "180+2"]
[Date "2023.02.28"]
[WhiteClock "0:00:03"]
[BlackClock "0:00:28"]

1. d4 {[%clk 0:03:00]}  f5 {[%clk 0:02:56]} 2. c4 {[%clk 0:02:59]}  d6 {[%clk 0:02:55]} 3. Nf3 {[%clk 0:02:59]}  g6 {[%clk 0:02:53]} 4. g3 {[%clk 0:02:58]}  Bg7 {[%clk 0:02:54]} 5. Bg2 {[%clk 0:02:58]}  Nc6 {[%clk 0:02:47]} 6. O-O {[%clk 0:02:57]}  e5 {[%clk 0:02:46]} 7. dxe5 {[%clk 0:02:53]}  dxe5 {[%clk 0:02:45]} 8. Qxd8+ {[%clk 0:02:52]}  Nxd8 {[%clk 0:02:45]} 9. Nc3 {[%clk 0:02:50]}  c6 {[%clk 0:02:45]} 10. Rd1 {[%clk 0:02:47]}  Be6 {[%clk 0:02:41]} 11. b3 {[%clk 0:02:44]}  e4 {[%clk 0:02:06]} 12. Nd4 {[%clk 0:02:43]}  c5 {[%clk 0:01:56]} 13. Nxe6 {[%clk 0:02:42]}  Nxe6 {[%clk 0:01:55]} 14. Bb2 {[%clk 0:02:40]}  Nd4 {[%clk 0:01:55]} 15. Kf1 {[%clk 0:02:26]}  Nf6 {[%clk 0:01:35]} 16. e3 {[%clk 0:01:55]}  Nc6 {[%clk 0:01:16]} 17. Nd5 {[%clk 0:01:15]}  O-O {[%clk 0:01:15]} 18. Nc7 {[%clk 0:01:05]}  Rad8 {[%clk 0:00:47]} 19. Ne6 {[%clk 0:01:04]}  Rxd1+ {[%clk 0:00:47]} 20. Rxd1 {[%clk 0:01:05]}  Re8 {[%clk 0:00:45]} 21. Nxg7 {[%clk 0:01:04]}  Kxg7 {[%clk 0:00:46]} 22. Rd6 {[%clk 0:00:51]}  Ne5 {[%clk 0:00:40]} 23. Ke2 {[%clk 0:00:35]}  Kf7 {[%clk 0:00:37]} 24. f4 {[%clk 0:00:30]}  exf3+ {[%clk 0:00:35]} 25. Bxf3 {[%clk 0:00:30]}  b6 {[%clk 0:00:30]} 26. Bc6 {[%clk 0:00:23]}  Re6 {[%clk 0:00:28]} 27. Rxe6 {[%clk 0:00:09]}  Kxe6 {[%clk 0:00:29]} 28. Bb7 {[%clk 0:00:06]}  Nfg4 {[%clk 0:00:27]} 29. h3 {[%clk 0:00:05]}  Nf6 {[%clk 0:00:28]} 30. Bc8+ {[%clk 0:00:05]}  Kd6 {[%clk 0:00:27]} 31. Bb7 {[%clk 0:00:05]}  Nh5 {[%clk 0:00:26]} 32. g4 {[%clk 0:00:03]}  fxg4 {[%clk 0:00:27]} 33. Bxe5+ {[%clk 0:00:03]}  Kxe5 {[%clk 0:00:28]} 34. hxg4 {[%clk 0:00:03]}  Nf6 {[%clk 0:00:29]} 35. Kf3 {[%clk 0:00:03]}  g5 {[%clk 0:00:28]} 36. Bc6 {[%clk 0:00:03]}  h6 {[%clk 0:00:28]} 37. Bd7 {[%clk 0:00:03]}  Nxd7 {[%clk 0:00:28]} 0-1


[Site "https://www.chess.com"]

[Event "Titled Tuesday Blitz February 28 Early 2023"]
[White "Omariev, Maksim"]
[Black "Skaric, Djuro"]
[WhiteFideId "4193423"]
[BlackFideId "934569"]
[WhiteElo "2460"]
[BlackElo "2282"]
[Result "1-0"]
[Round "11"]
[TimeControl "180+2"]
[Date "2023.02.28"]
[WhiteClock "0:01:12"]
[BlackClock "0:01:19"]

1. g4 {[%clk 0:02:53]}  d6 {[%clk 0:03:00]} 2. Bg2 {[%clk 0:02:52]}  Nc6 {[%clk 0:03:00]} 3. h3 {[%clk 0:02:50]}  f5 {[%clk 0:02:59]} 4. g5 {[%clk 0:02:49]}  g6 {[%clk 0:02:58]} 5. d4 {[%clk 0:02:49]}  Bg7 {[%clk 0:02:58]} 6. d5 {[%clk 0:02:47]}  Ne5 {[%clk 0:02:57]} 7. Nc3 {[%clk 0:02:45]}  e6 {[%clk 0:02:55]} 8. Nf3 {[%clk 0:02:40]}  exd5 {[%clk 0:02:54]} 9. Nxd5 {[%clk 0:02:37]}  c6 {[%clk 0:02:54]} 10. Nf4 {[%clk 0:02:32]}  Nxf3+ {[%clk 0:02:52]} 11. Bxf3 {[%clk 0:02:32]}  Ne7 {[%clk 0:02:46]} 12. c3 {[%clk 0:02:27]}  Qc7 {[%clk 0:02:42]} 13. Be3 {[%clk 0:02:18]}  d5 {[%clk 0:02:40]} 14. Qa4 {[%clk 0:02:12]}  O-O {[%clk 0:02:35]} 15. h4 {[%clk 0:02:10]}  Be5 {[%clk 0:02:35]} 16. Nd3 {[%clk 0:02:04]}  f4 {[%clk 0:02:27]} 17. Bd2 {[%clk 0:02:01]}  b5 {[%clk 0:02:24]} 18. Qb3 {[%clk 0:01:56]}  Bf5 {[%clk 0:02:21]} 19. Nxe5 {[%clk 0:01:50]}  Qxe5 {[%clk 0:02:20]} 20. O-O-O {[%clk 0:01:51]}  a5 {[%clk 0:02:18]} 21. h5 {[%clk 0:01:46]}  Rab8 {[%clk 0:02:16]} 22. Rh4 {[%clk 0:01:42]}  Rf7 {[%clk 0:02:14]} 23. Bxf4 {[%clk 0:01:37]}  Qe6 {[%clk 0:01:36]} 24. Bxb8 {[%clk 0:01:36]}  Nc8 {[%clk 0:01:28]} 25. Rxd5 {[%clk 0:01:14]}  a4 {[%clk 0:01:21]} 26. Rd8+ {[%clk 0:01:13]}  Rf8 {[%clk 0:01:21]} 27. Qxe6+ {[%clk 0:01:11]}  Bxe6 {[%clk 0:01:19]} 28. Rxf8+ {[%clk 0:01:11]}  Kxf8 {[%clk 0:01:19]} 29. hxg6 {[%clk 0:01:12]} 1-0


[Site "https://www.chess.com"]